fUSD/lending_fUSD_20260425
["ID","MTS","AMOUNT","RATE_DAILY","PERIOD"]
[421120115,1777086657286,-1007.710391,0.00027397,2]
[421120116,1777086657303,-1007.710391,0.00027397,2]
[421120117,1777086657313,-1007.710391,0.00027397,2]
[421120118,1777086657324,-1007.7104,0.00027397,2]
[421120119,1777086657335,-200.0,0.00027397,2]
[421120120,1777086657346,-200.0,0.00027397,2]
[421120121,1777086657357,-200.0,0.00027397,2]
[421120122,1777086657367,-1459.736675,0.00027397,2]
[421120123,1777086657378,-1459.736675,0.00027397,2]
[421120124,1777086657389,-1459.736675,0.00027397,2]
[421120125,1777086657404,-1459.736675,0.00027397,2]
[421120126,1777086657415,-1459.736675,0.00027397,2]
[421120127,1777086657426,-1459.736675,0.00027397,2]
[421120128,1777086657436,-1459.736675,0.00027397,2]
[421120129,1777086657448,-1459.736675,0.00027397,2]
[421120130,1777086657459,-1459.736675,0.00027397,2]
[421120131,1777086657469,-1459.736675,0.00027397,2]
[421120132,1777086657480,-1459.736675,0.00027397,2]
[421120133,1777086657491,-1459.736675,0.00027397,2]
[421120134,1777086657502,-1459.736675,0.00027397,2]
[421120135,1777086657513,-1459.736675,0.00027397,2]
[421120136,1777086657524,-1459.736675,0.00027397,2]
[421120137,1777086657535,-1459.736675,0.00027397,2]
[421120138,1777086657547,-1459.736675,0.00027397,2]
[421120139,1777086657557,-1459.736675,0.00027397,2]
[421120140,1777086657568,-200.0,0.00027397,2]
[421120141,1777086657578,-200.0,0.00027397,2]
[421120142,1777086657588,-1459.736675,0.00027397,2]
[421120143,1777086657599,-1459.736679,0.00027397,2]
[421120144,1777086657610,-200.0,0.00027397,2]
[421120145,1777086657621,-424.938722,0.00027397,2]
[421120146,1777086657632,-424.938722,0.00027397,2]
[421120147,1777086657643,-424.938722,0.00027397,2]
[421120148,1777086657654,-424.938722,0.00027397,2]
[421120149,1777086657664,-424.938722,0.00027397,2]
[421120150,1777086657675,-424.938722,0.00027397,2]
[421120151,1777086657690,-424.938722,0.00027397,2]
[421120152,1777086657701,-424.938722,0.00027397,2]
[421120153,1777086657712,-424.938722,0.00027397,2]
[421120154,1777086657724,-424.938722,0.00027397,2]
[421120155,1777086658143,-59.05395385,0.00027397,2]
[421120156,1777086659057,-365.88476815,0.00027397,2]
[421120157,1777086659067,-131.92823585,0.00027397,2]
[421120158,1777086659551,-2590.96888089,9.435e-05,2]
[421120159,1777086659583,-373.8208804,9.435e-05,2]
[421120160,1777086659605,-287.91208996,9.435e-05,2]
[421120161,1777086660007,-528.29814875,9.435e-05,2]
[421120162,1777086660018,-162.82489005,0.00011099,2]
[421120163,1777086660028,-2946.84699872,0.00012435,2]
[421120164,1777086660040,-834.15300128,0.00012435,2]
[421120165,1777086660050,-4149.79519703,0.00012471,2]
[421120166,1777086660060,-3781.0,0.00015435,2]
[421120167,1777086660070,-251.0,0.00016438,2]
[421120168,1777086660080,-3781.0,0.00018435,2]
[421120169,1777086660090,-870.913649,0.0002,2]
[421120170,1777086660099,-3781.0,0.00021435,2]
[421120171,1777086660109,-160.0,0.00022,3]
[421120172,1777086660118,-162.24807931,0.00022,3]
[421120173,1777086660128,-3781.0,0.00024435,2]
[421120174,1777086660137,-293.01048615,0.00027397,2]
[421120175,1777086660147,-424.938722,0.00027397,2]
[421120176,1777086660156,-424.938722,0.00027397,2]
[421120177,1777086660166,-424.938722,0.00027397,2]
[421120178,1777086660175,-424.938722,0.00027397,2]
[421120179,1777086660185,-424.938722,0.00027397,2]
[421120180,1777086660194,-424.938722,0.00027397,2]
[421120181,1777086660204,-424.938722,0.00027397,2]
[421120182,1777086660213,-424.938728,0.00027397,2]
[421120183,1777086660223,-1559.838863,0.00027397,2]
[421120184,1777086660233,-1559.838863,0.00027397,2]
[421120185,1777086660242,-1559.838863,0.00027397,2]
[421120186,1777086660252,-1559.838863,0.00027397,2]
[421120187,1777086660262,-1559.838863,0.00027397,2]
[421120188,1777086660272,-1559.838863,0.00027397,2]
[421120189,1777086660281,-1559.838863,0.00027397,2]
[421120190,1777086660290,-1559.838863,0.00027397,2]
[421120191,1777086660300,-1559.838863,0.00027397,2]
[421120192,1777086660309,-1559.838863,0.00027397,2]
[421120193,1777086660319,-1559.838863,0.00027397,2]
[421120194,1777086660328,-1559.838863,0.00027397,2]
[421120195,1777086660339,-1559.838863,0.00027397,2]
[421120196,1777086660349,-1559.838863,0.00027397,2]
[421120197,1777086660358,-1559.838863,0.00027397,2]
[421120198,1777086660368,-1559.838863,0.00027397,2]
[421120199,1777086660378,-1559.838863,0.00027397,2]
[421120200,1777086660388,-1559.838863,0.00027397,2]
[421120201,1777086660397,-1559.838863,0.00027397,2]
[421120202,1777086660407,-1559.838863,0.00027397,2]
[421120203,1777086660417,-171.65991593,0.00027397,5]
[421120204,1777086660427,-500.0,0.00027397,5]
[421120205,1777086660437,-161.66219955,0.00027397,5]
[421120206,1777086660447,-182.78,0.000274,2]
[421120207,1777086660457,-150.0,0.00027443,2]
[421120208,1777086660466,-500.0,0.00027452,2]
[421120209,1777086660476,-896.77747135,0.00027466,2]
[421120210,1777086660485,-745.65223616,0.00027471,2]
[421120211,1777086660495,-2000.0,0.000275,2]
[421120212,1777086660504,-203.23320525,0.000275,2]
[421120213,1777086660514,-1539.59588,0.000275,2]
[421120214,1777086660523,-500.0,0.00027507,2]
[421120215,1777086660533,-500.0,0.00027514,2]
[421120216,1777086660542,-504.0,0.00027549,14]
[421120217,1777086660552,-500.0,0.00027562,2]
[421120218,1777086660562,-279.85809762,0.00027616,2]
[421120219,1777086660571,-500.0,0.00027617,2]
[421120220,1777086660581,-378.7,0.00027644,120]
[421120221,1777086660590,-500.0,0.00027645,2]
[421120222,1777086660600,-500.0,0.00027672,2]
[421120223,1777086660610,-150.0,0.00027715,120]
[421120224,1777086660620,-726.7,0.00027726,30]
[421120225,1777086660630,-500.0,0.00027727,2]
[421120226,1777086660640,-500.0,0.00027782,2]
[421120227,1777086660649,-500.0,0.00027796,120]
[421120228,1777086660658,-500.0,0.00027837,2]
[421120229,1777086660668,-199.39438549,0.00027883,2]
[421120230,1777086660678,-378.35,0.0002789,120]
[421120231,1777086660688,-500.0,0.00027892,2]
[421120232,1777086660698,-200.0,0.000279,2]
[421120233,1777086660708,-500.0,0.00027947,2]
[421120234,1777086660717,-470.16338822,0.00028,5]
[421120235,1777086660726,-160.0,0.00028,2]
[421120236,1777086660736,-560.06548277,0.00028,2]
[421120237,1777086660851,-653.74439782,0.00027435,2]
[421120238,1777086660863,-414.27799472,0.00027435,2]
[421120239,1777086660875,-445.3297252,0.00027435,2]
[421120240,1777086660887,-509.0,0.00027435,2]
[421120241,1777086660904,-1758.64788226,0.00027435,2]
[421120242,1777086660914,-82.93451723,0.00028,2]
[421120243,1777086660924,-160.3564285,0.00028,2]
[421120244,1777086660934,-351.25,0.00028,7]
[421120245,1777086660943,-1500.0,0.00028,2]
[421120246,1777086660952,-180.10238903,0.00028,2]
[421120247,1777086660964,-533.29761097,0.00028,2]
[421120248,1777086660975,-713.4,0.00028,2]
[421120249,1777086660985,-132.27256559,0.00028,2]
[421120250,1777086813683,-500.0,9.894e-05,2]
[421120251,1777086813711,-410.59,9.9e-05,2]
[421120252,1777086813740,-162.24807931,9.994e-05,2]
[421120253,1777086813768,-160.0,9.994e-05,2]
[421120254,1777086813797,-162.82489003,0.000114,2]
[421120255,1777086813828,-160.0,0.0001176,2]
[421120256,1777086813857,-265.669742,0.0001176,2]
[421120257,1777086813887,-371.339485,0.0001176,2]
[421120258,1777086813917,-252.38868532,0.00012348,2]
[421120259,1777086814592,-109.88823668,0.00012348,2]
[421120260,1777087281349,-300.0,0.00011234,2]
[421120261,1777087281381,-623.0,0.00011235,2]
[421120262,1777087281411,-416.0,0.00011235,2]
[421120263,1777087281515,-1794.88900968,0.00011235,2]
[421120264,1777087281558,-1986.11099032,0.00011235,2]
[421120265,1777087281596,-1027.78801936,0.00011235,2]
[421120266,1777087281668,-1447.21198064,0.00011235,2]
[421120267,1777087281700,-162.24807931,0.00012031,2]
[421120268,1777087281731,-155.55325559,0.00012359,2]
[421120269,1777087281764,-535.50161218,0.00012359,2]
[421120270,1777087281834,-398.98014456,0.00012359,2]
[421120273,1777087746756,-416.0,0.00011235,2]
[421120274,1777087746785,-387.01,0.00011235,2]
[421120275,1777087746826,-3393.99,0.00011235,2]
[421120276,1777087746970,-1615.41900778,0.00012223,2]
[421120277,1777087746999,-162.24807931,0.00012835,2]
[421120278,1777087747029,-279.84311986,0.0001297,2]
[421120279,1777087747063,-77.9895861,0.00013129,2]
[421120280,1777087747138,-729.0104139,0.00013129,2]
[421120281,1777087747168,-807.0,0.00013186,2]
[421120282,1777087747199,-807.0,0.00013262,2]
[421120283,1777087747228,-34.14605235,0.00013284,2]
[421120284,1777087747332,-245.6970675,0.00013284,2]
[421120285,1777087747341,-449.16729405,0.00013379,2]
[421120286,1777087747356,-279.84311985,0.00013379,2]
[421120287,1777087749662,-77.9895861,0.00013379,2]
[421120288,1777087749691,-807.0,0.00013386,2]
[421120289,1777087749720,-807.0,0.00013393,2]
[421120290,1777087749751,-467.0308278,0.00013393,2]
[421120291,1777087749819,-681.9691722,0.00013393,2]
[421120292,1777087749914,-300.0,0.00013393,2]
[421120293,1777087749943,-150.0,0.00013393,2]
[421120294,1777087749973,-150.99,0.00013394,2]
[421120295,1777087750000,-299.99,0.00013394,2]
[421120296,1777087750469,-1137.15,0.00013394,2]
[421120297,1777087750550,-2060.9,0.00013394,2]
[421120298,1777087750578,-664.81,0.00013394,2]
[421120299,1777087750587,-3198.05,0.00013394,2]
[421120303,1777087832200,-404.30213,0.00011235,2]
[421120304,1777087832213,-673.90711308,0.00011235,2]
[421120305,1777087832252,-313.46399053,0.00011235,2]
[421120306,1777087832309,-1083.32676639,0.00011235,2]
[421120307,1777087832319,-707.65078967,0.00013394,2]
[421120308,1777087832417,-267.35921033,0.00013394,2]
[421120309,1777087832427,-1184.58399155,0.00013394,2]
[421120323,1777087838349,-28.51600845,0.00013394,2]
[421120324,1777087838360,-807.0,0.00013395,2]
[421120325,1777087838370,-807.0,0.00013395,2]
[421120326,1777087838380,-13344.12062573,0.00013423,2]
[421120327,1777087838391,-504.0,0.000135,2]
[421120328,1777087838401,-807.0,0.00013589,2]
[421120329,1777087838411,-807.0,0.00013616,2]
[421120330,1777087838420,-807.0,0.00013687,2]
[421120331,1777087838430,-807.0,0.0001373,2]
[421120332,1777087838441,-807.0,0.00013754,2]
[421120333,1777087838451,-27579.69982081,0.00013775,2]
[421120334,1777087838460,-807.0,0.00013817,2]
[421120335,1777087838470,-807.0,0.00013832,2]
[421120336,1777087838480,-500.0,0.00013902,2]
[421120337,1777087838490,-807.0,0.00013912,2]
[421120338,1777087838500,-807.0,0.00013935,2]
[421120339,1777087838509,-150.0,0.00013999,2]
[421120340,1777087838519,-1783.98122673,0.00014,2]
[421120341,1777087838529,-807.0,0.00014062,2]
[421120342,1777087838539,-807.0,0.00014121,2]
[421120343,1777087838549,-807.0,0.00014134,2]
[421120344,1777087838559,-807.0,0.00014146,2]
[421120345,1777087838568,-807.0,0.00014153,2]
[421120346,1777087838578,-7557.41902576,0.00014167,2]
[421120347,1777087838587,-2475.0,0.00014235,2]
[421120348,1777087838598,-807.0,0.00014241,2]
[421120349,1777087838607,-807.0,0.00014342,2]
[421120350,1777087838617,-807.0,0.00014345,2]
[421120351,1777087838628,-504.0,0.00014709,3]
[421120352,1777087838637,-150.0,0.00014733,2]
[421120353,1777087838647,-205.31822219,0.00014733,2]
[421120354,1777087838657,-200.0,0.00014733,2]
[421120355,1777087838668,-200.0,0.00014733,2]
[421120356,1777087838677,-200.0,0.00014733,2]
[421120357,1777087838687,-200.0,0.00014733,2]
[421120358,1777087838697,-233.81148602,0.00014733,2]
[421120359,1777087838706,-300.0,0.00014733,2]
[421120360,1777087838716,-300.0,0.00014733,2]
[421120361,1777087838726,-300.0,0.00014733,2]
[421120362,1777087838737,-292.34269191,0.00014733,2]
[421120363,1777087838746,-501.0,0.00015,2]
[421120364,1777087838756,-160.0,0.00015,2]
[421120365,1777087838765,-708.23,0.000158,6]
[421120366,1777087838775,-504.0,0.00015918,4]
[421120367,1777087838784,-203.1,0.00016438,2]
[421120368,1777087838794,-470.48183595,0.000165,2]
[421120369,1777087838804,-500.0,0.00016738,2]
[421120370,1777087838814,-470.48183595,0.00016895,2]
[421120371,1777087838823,-504.0,0.00017127,5]
[421120372,1777087838833,-2475.0,0.00017235,2]
[421120373,1777087838843,-470.48183595,0.00017291,2]
[421120374,1777087838853,-195.00338125,0.0001736,3]
[421120375,1777087838862,-335.1,0.00017424,2]
[421120376,1777087838872,-470.48183595,0.00017686,7]
[421120377,1777087838882,-162.03,0.00017809,2]
[421120378,1777087838892,-162.03,0.00017811,2]
[421120379,1777087838901,-470.48183595,0.00018082,7]
[421120380,1777087838911,-1117.0,0.00018296,2]
[421120381,1777087838921,-504.0,0.00018336,6]
[421120382,1777087838930,-470.48183595,0.00018477,7]
[421120383,1777087838940,-708.23,0.000186,10]
[421120384,1777087838950,-470.48183595,0.00018873,7]
[421120385,1777087838960,-150.0,0.00019036,4]
[421120386,1777087838970,-150.0,0.00019036,2]
[421120387,1777087838979,-150.0,0.00019036,2]
[421120388,1777087838988,-150.87380379,0.00019036,2]
[421120389,1777087838998,-150.0,0.00019036,2]
[421120390,1777087839008,-150.0,0.00019036,2]
[421120391,1777087839018,-150.0,0.00019036,2]
[421120392,1777087839027,-150.0,0.00019178,2]
[421120393,1777087839037,-470.48183595,0.00019268,7]
[421120394,1777087839047,-150.0,0.00019271,4]
[421120395,1777087839057,-150.0,0.00019506,4]
[421120396,1777087839067,-504.0,0.00019545,7]
[421120397,1777087839076,-150.0,0.00019564,4]
[421120398,1777087839086,-500.0,0.00019575,2]
[421120399,1777087839096,-470.48183595,0.00019663,7]
[421120400,1777087839106,-150.0,0.00019741,4]
[421120401,1777087839116,-150.0,0.00019741,4]
[421120402,1777087839126,-150.0,0.00019976,4]
[421120403,1777087839135,-4479.0,0.0002,2]
[421120404,1777087839145,-212.03,0.0002,2]
[421120405,1777087839155,-9899.98,0.0002,30]
[421120406,1777087839164,-487.0,0.0002,2]
[421120407,1777087839174,-176.0,0.0002,2]
[421120408,1777087839183,-620.0,0.0002,2]
[421120409,1777087839193,-200.0,0.0002,10]
[421120411,1777087839203,-827.0,0.0002,2]
[421120412,1777087839213,-885.0,0.0002,2]
[421120413,1777087839222,-262.0,0.0002,2]
[421120414,1777087839232,-470.48183595,0.00020059,14]
[421120415,1777087839242,-150.0,0.00020093,4]
[421120416,1777087839252,-150.0,0.00020093,4]
[421120417,1777087839261,-150.0,0.00020093,4]
[421120418,1777087839271,-300.0,0.000201,10]
[421120419,1777087839281,-150.0,0.00020117,2]
[421120420,1777087839291,-150.0,0.00020211,4]
[421120421,1777087839301,-2475.0,0.00020235,2]
[421120422,1777087839310,-265.0,0.00020371,2]
[421120423,1777087839319,-150.0,0.00020446,4]
[421120424,1777087839329,-150.0,0.00020446,4]
[421120425,1777087839338,-470.48183595,0.00020454,14]
[421120426,1777087839348,-1000.0,0.000205,7]
[421120428,1777087839358,-2000.0,0.000206,7]
[421120430,1777087839367,-337.0,0.0002061,2]
[421120431,1777087839377,-150.0,0.00020622,4]
[421120432,1777087839387,-150.0,0.00020681,4]
[421120433,1777087839397,-3000.0,0.000207,7]
[421120434,1777087839406,-264.072769,0.00020737,7]
[421120435,1777087839415,-504.0,0.00020755,8]
[421120436,1777087839425,-4100.0,0.000208,7]
[421120437,1777087839781,-162.24807931,0.000208,7]
[421120438,1777087839801,-411.0,0.00020845,2]
[421120439,1777087839811,-470.48183595,0.0002085,14]
[421120440,1777087839821,-5100.0,0.000209,7]
[421120441,1777087839832,-150.0,0.00020916,4]
[421120442,1777087839842,-4479.0,0.00021,2]
[421120443,1777087839852,-487.0,0.00021,2]
[421120444,1777087839862,-176.0,0.00021,2]
[421120445,1777087839871,-620.0,0.00021,2]
[421120446,1777087839881,-827.0,0.00021,2]
[421120447,1777087839890,-885.0,0.00021,2]
[421120448,1777087839899,-262.0,0.00021,2]
[421120449,1777087839910,-973.0,0.00021,2]
[421120450,1777087839920,-956.0,0.00021,2]
[421120451,1777087839929,-340.62304228,0.0002106,2]
[421120452,1777087839943,-304.0,0.0002106,2]
[421120454,1777087840363,-3532.20722519,0.0002106,2]
[421120461,1777087843376,-1096.84800077,0.0002106,2]
[421120462,1777087843693,-475.32966036,0.0002106,2]
[421120463,1777087843703,-162.82489003,0.0002106,2]
[421120464,1777087843713,-5000.0,0.0002106,2]
[421120465,1777087843723,-2500.0,0.0002106,2]
[421120466,1777087843738,-3141.40924316,0.0002106,2]
[421120467,1777087843748,-3112.34639779,0.0002106,2]
[421120468,1777087843758,-178.76945656,0.00021073,2]
[421120469,1777087843768,-1052.37494471,0.000211,2]
[421120470,1777087843777,-977.13659803,0.000211,3]
[421120471,1777087843787,-1289.72040889,0.000211,2]
[421120472,1777087843797,-221.16271067,0.00021151,4]
[421120473,1777087843807,-151.55043311,0.00021151,4]
[421120474,1777087843817,-153.95550849,0.00021151,4]
[421120475,1777087843827,-200.84850799,0.00021151,4]
[421120476,1777087843838,-180.69513115,0.00021151,4]
[421120477,1777087843847,-163.43941887,0.00021151,4]
[421120478,1777087843857,-1103.85013062,0.00021159,5]
[421120479,1777087843867,-705.62,0.00021159,2]
[421120480,1777087843876,-705.62,0.00021159,2]
[421120481,1777087843886,-705.62,0.00021159,2]
[421120482,1777087843896,-705.62,0.00021159,2]
[421120483,1777087843906,-705.62,0.00021159,2]
[421120485,1777087843916,-705.62,0.00021159,2]
[421120487,1777087843926,-705.62,0.00021159,2]
[421120489,1777087843935,-705.62,0.00021159,2]
[421120490,1777087843945,-705.62,0.00021159,2]
[421120491,1777087843955,-705.62,0.00021159,2]
[421120492,1777087843965,-500.0,0.00021159,2]
[421120493,1777087843974,-221.87106167,0.00021159,2]
[421120494,1777087843984,-500.0,0.00021159,2]
[421120495,1777087843994,-500.0,0.00021159,2]
[421120496,1777087844003,-500.0,0.00021159,2]
[421120497,1777087844013,-500.0,0.00021159,2]
[421120498,1777087844022,-500.0,0.00021159,2]
[421120499,1777087844032,-500.0,0.00021159,2]
[421120500,1777087844042,-500.0,0.00021159,2]
[421120501,1777087844052,-500.0,0.00021159,2]
[421120502,1777087844062,-500.0,0.00021159,2]
[421120503,1777087844071,-500.0,0.00021159,2]
[421120504,1777087844081,-500.0,0.00021159,2]
[421120505,1777087844090,-500.0,0.00021159,2]
[421120506,1777087844099,-500.0,0.00021159,2]
[421120507,1777087844109,-500.0,0.00021159,2]
[421120508,1777087844119,-500.0,0.00021159,2]
[421120509,1777087844129,-500.0,0.00021159,2]
[421120510,1777087844144,-500.0,0.00021159,2]
[421120511,1777087844154,-500.0,0.00021159,2]
[421120512,1777087844163,-500.0,0.00021159,2]
[421120513,1777087844173,-500.0,0.00021159,2]
[421120514,1777087844183,-500.0,0.00021159,2]
[421120515,1777087844192,-500.0,0.00021159,2]
[421120516,1777087844202,-500.0,0.00021159,2]
[421120517,1777087844212,-500.0,0.00021159,2]
[421120518,1777087844222,-500.0,0.00021159,2]
[421120519,1777087844231,-500.0,0.00021159,2]
[421120520,1777087844240,-500.0,0.00021159,2]
[421120521,1777087844250,-500.0,0.00021159,2]
[421120522,1777087844260,-500.0,0.00021159,2]
[421120523,1777087844270,-500.0,0.00021159,2]
[421120524,1777087844280,-500.0,0.00021159,2]
[421120525,1777087844289,-500.0,0.00021159,2]
[421120526,1777087844299,-500.0,0.00021159,2]
[421120527,1777087844309,-500.0,0.00021159,2]
[421120528,1777087844319,-500.0,0.00021159,2]
[421120529,1777087844328,-500.0,0.00021159,2]
[421120530,1777087844339,-500.0,0.00021159,2]
[421120531,1777087844348,-500.0,0.00021159,2]
[421120532,1777087844358,-500.0,0.00021159,2]
[421120533,1777087844370,-500.0,0.00021159,2]
[421120534,1777087844380,-500.0,0.00021159,2]
[421120535,1777087844390,-500.0,0.00021159,2]
[421120536,1777087844400,-500.0,0.00021159,2]
[421120537,1777087844412,-500.0,0.00021159,2]
[421120538,1777087844422,-500.0,0.00021159,2]
[421120539,1777087844432,-515.45517635,0.00021159,2]
[421120540,1777087844442,-248.74609613,0.00021159,2]
[421120541,1777087844451,-500.0,0.00021159,2]
[421120542,1777087844461,-500.0,0.00021159,2]
[421120543,1777087844471,-500.0,0.00021159,2]
[421120544,1777087844481,-500.0,0.00021159,2]
[421120545,1777087844491,-500.0,0.00021159,2]
[421120546,1777087844500,-500.0,0.00021159,2]
[421120547,1777087844509,-500.0,0.00021159,2]
[421120548,1777087844518,-500.0,0.00021159,2]
[421120549,1777087844528,-500.0,0.00021159,2]
[421120550,1777087844542,-500.0,0.00021159,2]
[421120551,1777087844551,-500.0,0.00021159,2]
[421120552,1777087844561,-500.0,0.00021159,2]
[421120553,1777087844571,-500.0,0.00021159,2]
[421120554,1777087844581,-500.0,0.00021159,2]
[421120555,1777087844591,-500.0,0.00021159,2]
[421120556,1777087845012,-500.0,0.00021159,2]
[421120557,1777087845024,-600.0,0.00021159,2]
[421120558,1777087845034,-500.0,0.00021159,2]
[421120559,1777087845044,-500.0,0.00021159,2]
[421120560,1777087845055,-500.0,0.00021159,2]
[421120561,1777087845065,-500.0,0.00021159,2]
[421120562,1777087845076,-500.0,0.00021159,2]
[421120563,1777087845086,-500.0,0.00021159,2]
[421120564,1777087845095,-500.0,0.00021159,2]
[421120565,1777087845105,-500.0,0.00021159,2]
[421120566,1777087845115,-251.7702049,0.00021159,2]
[421120567,1777087845125,-331.19652989,0.00021159,2]
[421120568,1777087845135,-345.0,0.0002116,5]
[421120569,1777087845144,-281.0,0.0002116,5]
[421120570,1777087845154,-209933.94127149,0.0002116,2]
[421120577,1777088212375,-500.0,0.00011135,2]
[421120578,1777088212407,-150.22379931,0.00012,2]
[421120579,1777088212438,-162.24807931,0.00012013,2]
[421120580,1777088212469,-279.84311986,0.00012051,2]
[421120581,1777088212500,-300.0,0.0001215,2]
[421120582,1777088212532,-1066.38000304,0.0001215,2]
[421120583,1777088212648,-82.61999696,0.0001215,2]
[421120584,1777088212682,-300.0,0.0001215,2]
[421120585,1777088212715,-623.0,0.00012151,2]
[421120586,1777088212842,-1219.01,0.00012151,2]
[421120587,1777088212902,-1935.0,0.00012151,2]
[421120588,1777088212926,-626.99,0.00012151,2]
[421120589,1777088212936,-416.0,0.00012151,2]
[421120591,1777088284993,883.71,9.9e-05,2]
[421120593,1777088295677,769.48,9.9e-05,2]
[421120594,1777088419633,2475.0,0.00012151,2]
[421120595,1777088431214,871.82,0.00012151,2]
[421120596,1777088431243,2909.18,0.00012151,2]
[421120597,1777088444257,416.0,0.00012151,2]
[421120598,1777088571716,195.0,7.459e-05,2]
[421120599,1777089031487,-186.5620799,0.000121,2]
[421120600,1777089031502,-344.38226631,0.00012151,2]
[421120601,1777089031538,-270.37737651,0.00012151,2]
[421120602,1777089031593,-8.24035718,0.00012151,2]
[421120603,1777089031608,-416.0,0.00012151,2]
[421120604,1777089031624,-2475.0,0.00012151,2]
[421120605,1777089031639,-161.0,0.000122,7]
[421120606,1777089031653,-186.5620799,0.00012662,2]
[421120607,1777089031668,-250.0,0.00013,2]
[421120608,1777089031682,-160.0,0.00013068,2]
[421120609,1777089031696,-162.24807931,0.00013144,2]
[421120610,1777089031711,-186.5620799,0.00013223,2]
[421120611,1777089031725,-2723.30309811,0.00013223,2]
[421120612,1777089031740,-2500.0,0.00013223,2]
[421120613,1777089031754,-276749.05378017,0.00013223,2]
[421120614,1777089031772,-1770.0,0.00013223,2]
[421120629,1777089039365,-11030.8771215,0.00013223,2]
[421120632,1777089039684,-1436.34957574,0.00013223,2]
[421120640,1777089039790,-15194.89871342,0.00013223,2]
[421120641,1777089039844,-337.05962658,0.00013223,2]
[421120642,1777089040214,-336.50767675,0.00013223,2]
[421120643,1777089040228,-366.52408091,0.00013223,2]
[421120644,1777089040267,-1656.51305351,0.00013223,2]
[421120645,1777089040279,-3093.41928878,0.00013223,2]
[421120666,1777089042641,-3725.20206658,0.00013223,2]
[421120667,1777089042696,-621.69315632,0.00013223,2]
[421120668,1777089042906,-160770.53727859,0.00013223,2]
[421120678,1777089045863,-429.38042809,0.00012151,2]
[421120679,1777089045916,-2454.16723922,0.00012151,2]
[421120680,1777089045971,-740.45233269,0.00012151,2]
[421120681,1777089045981,-198.33412724,0.00013223,2]
[421120697,1777090231705,-253.46543089,8.698e-05,2]
[421120698,1777090231719,-46.53456911,8.698e-05,2]
[421120699,1777090231731,-1200.0,8.698e-05,2]
[421120700,1777090231741,-250.0,8.699e-05,2]
[421120701,1777090231752,-279.84311986,8.699e-05,2]
[421120702,1777090231766,-150.0,8.699e-05,2]
[421120703,1777090231776,-300.0,8.699e-05,2]
[421120704,1777090231787,-1309.919402,8.7e-05,2]
[421120705,1777090231799,-5880.0,8.7e-05,2]
[421120706,1777090231821,-4571.80169146,8.7e-05,2]
[421120707,1777090231835,-851.12712388,8.7e-05,2]
[421120708,1777090231918,-811.50471421,8.7e-05,2]
[421120722,1777090237863,-867.04626424,8.7e-05,2]
[421120724,1777090237877,-557.49671702,8.7e-05,2]
[421120725,1777090237891,-471.87366345,8.7e-05,2]
[421120726,1777090237918,-26848.53320593,8.7e-05,2]
[421120727,1777090238029,-2027.98034925,8.7e-05,2]
[421120728,1777090238042,-1553.52,8.7e-05,2]
[421120729,1777090238055,-535.41792625,8.7e-05,2]
[421120730,1777090238067,-3544.04180875,8.7e-05,2]
[421120731,1777090238092,-1076.55582393,8.7e-05,2]
[421120732,1777090238104,-6491.07,8.7e-05,2]
[421120833,1777090240115,-182088.98195655,8.7e-05,2]
[421120834,1777090240128,-1838.66260212,8.7e-05,2]